bitfinex-derivatives/quotes_SOLF0:USTF0_20250523
["timestamp","ask_amount","ask_price","bid_price","bid_amount"]
[1748001727676,15.62644128,177.2,176.97,2.9903]
[1748001727878,0.03678517,177.1,177.07,0.04079079]
[1748001728074,0.04263179,177.1,177.07,0.04023622]
[1748001728387,1.9412,177.28,177.09,15.62644128]
[1748001728579,5.6423,177.22,177.1,446.84]
[1748001728781,3.7897,177.38,177.11,0.9835]
[1748001728990,3.7897,177.38,177.1,448.8439]
[1748001728991,15.62644128,177.36,177.1,448.8439]
[1748001729190,0.03725156,177.25,177.21,3.896e-05]
[1748001729487,3.7897,177.38,177.08,15.62644128]
[1748001729689,3.7897,177.38,177.14,15.62644128]
[1748001729992,15.62644128,177.65,177.09,4.7026]
[1748001729993,15.62644128,177.51,177.15,446.96]
[1748001730293,0.03932066,177.35,177.31,0.03856521]
[1748001730491,0.04320727,177.35,177.31,0.03760022]
[1748001731490,15.62644128,177.58,177.31,0.03760022]
[1748001731680,2.0217,177.52,177.21,3.7191]
[1748001731879,2.0217,177.52,177.21,19.34554128]
[1748001732083,1.9301,177.51,177.21,19.34554128]
[1748001732282,1.9301,177.51,177.3,15.62644128]
[1748001732499,0.0390853,177.42,177.39,0.0375655]
[1748001732694,0.03937592,177.42,177.39,0.04256477]
[1748001733391,2.0077,177.59,177.39,0.04256477]
[1748001733589,1.8595,177.7,177.38,15.62644128]
[1748001733788,1.8595,177.7,177.39,1.9195]
[1748001733983,5.6289,177.65,177.53,5.6324]
[1748001734289,3.817,177.72,177.5,446.9]
[1748001734487,0.04324674,177.63,177.62,5.6296]
[1748001734686,3.817,177.72,177.5,462.52644128]
[1748001734892,0.04245182,177.63,177.59,0.04148476]
[1748001735089,3.817,177.81,177.51,2.0009]
[1748001735581,16.9,177.86,177.52,15.62644128]
[1748001735789,6.1924104,177.9,177.57,15.62644128]
[1748001735989,1.9513,177.85,177.52,1.8896]
[1748001736196,1.9513,177.85,177.7,0.04327398]
[1748001736394,1.9513,177.85,177.76,0.03999177]
[1748001736692,0.04031333,177.79,177.64,446.68]
[1748001736888,0.03722812,177.73,177.7,0.0415036]
[1748001737285,0.03722812,177.73,177.71,5.6266]
[1748001738296,0.03722812,177.73,177.7,0.0415036]
[1748001738988,0.03722812,177.73,177.54,446.34]
[1748001738989,5.65722812,177.73,177.54,446.34]
[1748001739194,16.33984036,177.8,177.54,446.34]
[1748001739381,446.34,177.83,177.54,446.34]
[1748001739584,446.34,177.83,177.44,446.34]
[1748001739790,5.6298,177.62,177.51,5.633]
[1748001739999,0.04068459,177.58,177.55,0.03958716]
[1748001740297,446.34,177.83,177.55,0.04285912]
[1748001740486,462.68056737,177.83,177.49,16.34056737]
[1748001740798,16.33266253,177.77,177.5,3.8645]
[1748001740988,16.3445264,177.77,177.5,3.8645]
[1748001741295,0.04199685,177.65,177.62,0.03571042]
[1748001741591,446.34,177.83,177.59,16.33211415]
[1748001742000,446.34,177.83,177.65,5.6286]
[1748001742294,446.34,177.83,177.57,446.24]
[1748001742494,0.04208242,177.72,177.68,0.03786763]
[1748001742794,0.04242209,177.72,177.46,446.24]
[1748001742996,16.33448847,177.76,177.42,16.33448847]
[1748001743213,16.35177491,177.73,177.42,16.35177491]
[1748001743387,3.8065,177.72,177.43,62.0]
[1748001743791,0.03786127,177.59,177.56,0.04041463]
[1748001743989,3.8065,177.72,177.57,5.6309]
[1748001744298,457.3371,177.98,177.58,16.34753796]
[1748001744504,3.8065,177.82,177.58,462.44753796]
[1748001744693,5.6254,177.76,177.58,462.44753796]
[1748001744997,0.04316557,177.69,177.65,0.03700987]
[1748001745198,3.8065,177.82,177.65,0.04021808]
[1748001745397,3.8065,177.82,177.58,446.1]
[1748001745695,3.8065,177.82,177.6,16.34753796]
[1748001746093,5.6271,177.7,177.63,5.6292]
[1748001746395,462.44753796,177.93,177.65,0.03689947]
[1748001746698,18.33543796,177.89,177.61,2.7715]
[1748001747002,18.33543796,177.89,177.61,4.6575]
[1748001747199,5.6269,177.71,177.61,3.7244]
[1748001747393,16.34753796,177.83,177.64,0.03918395]
[1748001747702,1.9879,177.89,177.5,445.98]
[1748001747703,16.34753796,177.84,177.5,445.98]
[1748001747889,1.9879,177.89,177.58,16.34753796]
[1748001748089,1.9468,177.88,177.59,2.9274]
[1748001748295,16.34753796,177.85,177.59,4.8717]
[1748001748490,0.03993995,177.74,177.5,445.98]
[1748001748691,5.6266,177.72,177.63,5.6291]
[1748001748902,1.9468,177.88,177.51,2.9274]
[1748001749198,16.34753796,177.79,177.6,5.6301]
[1748001749499,16.34753796,177.73,177.68,0.03622002]
[1748001749798,5.6305,177.59,177.51,5.6331]
[1748001750004,3.7246,177.72,177.45,1.9443]
[1748001750209,3.7246,177.72,177.46,62.0]
[1748001750495,3.7246,177.72,177.47,0.9331]
[1748001750710,0.03666817,177.61,177.57,0.03795933]
[1748001750900,0.03566869,177.61,177.57,0.03559193]
[1748001751087,0.03566869,177.61,177.37,16.34753796]
[1748001751088,5.67566869,177.61,177.37,16.34753796]
[1748001751287,1.9294,177.6,177.35,21.16743796]
[1748001751504,1.9294,177.6,177.38,16.34753796]
[1748001751705,1.9034,177.68,177.35,4.8199]
[1748001751904,1.9034,177.68,177.45,16.34753796]
[1748001752102,0.04029957,177.58,177.55,0.03751744]
[1748001752306,0.04122279,177.58,177.55,0.03561543]
[1748001752994,5.6313,177.57,177.55,0.03561543]
[1748001753204,0.04122279,177.58,177.55,0.03561543]
[1748001754201,445.94,177.81,177.55,5.67561543]
[1748001754407,445.94,177.81,177.51,16.34753796]
[1748001754408,1.9271,177.75,177.53,445.94]
[1748001754599,5.6259,177.74,177.57,16.34753796]
[1748001754801,1.8584,177.77,177.55,16.34753796]
[1748001755001,1.9271,177.8,177.55,16.34753796]
[1748001755310,1.9271,177.8,177.65,0.03658465]
[1748001755311,0.04262989,177.68,177.65,0.03658465]
[1748001755502,0.04157873,177.68,177.65,0.03747599]
[1748001755804,1.9271,177.8,177.65,0.03747599]
[1748001755999,1.9271,177.8,177.6,16.34753796]
[1748001756703,0.04032175,177.71,177.67,0.04135723]
[1748001756897,0.0425003,177.71,177.67,0.03731812]
[1748001757808,0.0425003,177.71,177.53,445.94]
[1748001758105,447.7334,177.78,177.53,445.94]
[1748001758410,16.35306332,177.74,177.48,1.9739]
[1748001758607,16.35626633,177.72,177.43,445.88]
[1748001758818,0.04338719,177.61,177.57,4.707e-05]
[1748001759000,11.2536,177.71,177.43,445.88]
[1748001759200,18.38716633,177.73,177.45,16.35626633]
[1748001759508,2.0309,177.73,177.45,16.35626633]
[1748001759805,0.04178276,177.61,177.57,0.03621635]
[1748001760010,0.04227667,177.61,177.57,0.04136041]
[1748001760506,0.04227667,177.61,177.43,445.88]
[1748001760710,445.84,177.65,177.33,449.5928]
[1748001760912,445.84,177.65,177.38,16.36594736]
[1748001761407,5.6308,177.59,177.53,5.6322]
[1748001761608,0.04336981,177.58,177.54,0.04119308]
[1748001761811,0.04134034,177.58,177.54,0.04067564]
[1748001761994,0.04134034,177.58,177.4,16.35838532]
[1748001762194,445.84,177.65,177.43,16.35475579]
[1748001762400,3.995,177.66,177.45,16.35004485]
[1748001762606,3.995,177.66,177.35,445.94]
[1748001762810,15.2518,177.66,177.35,462.29028165]
[1748001763104,0.03927335,177.52,177.49,0.04319184]
[1748001763308,0.04070726,177.52,177.49,0.03665778]
[1748001764098,5.6299,177.61,177.55,5.6315]
[1748001764305,2.0037,177.7,177.48,16.34437635]
[1748001764706,5.6299,177.61,177.46,16.34837263]
[1748001765112,3.088e-05,177.55,177.54,5.6321]
[1748001765410,1.8977,177.77,177.52,16.33297641]
[1748001765609,5.6288,177.65,177.49,446.02]
[1748001765806,5.8577,177.77,177.5,16.33297641]
[1748001766010,5.8577,177.77,177.49,446.02]
[1748001766207,0.04213771,177.65,177.61,0.03893278]
[1748001766411,0.04213771,177.65,177.61,0.03971663]
[1748001766412,0.03774178,177.65,177.61,0.03971663]
[1748001766708,5.6259,177.74,177.61,0.03971663]
[1748001766911,2.0037,177.79,177.62,62.0]
[1748001767699,0.03938429,177.72,177.69,5.66565651]
[1748001767903,3.8001,177.89,177.69,16.34939011]
[1748001768114,5.6968,177.89,177.66,445.92]
[1748001769016,0.03633788,177.78,177.75,0.03863817]
[1748001769219,0.03620351,177.78,177.75,0.03916068]
[1748001770911,445.8,178.02,177.75,67.65916068]
[1748001771224,5.7807,178.0,177.79,16.32464041]
[1748001771515,5.6188,177.97,177.85,16.32464041]
[1748001771716,0.0392909,177.93,177.89,0.03963744]
[1748001771917,6.1924104,178.05,177.87,16.32464041]
[1748001772113,6.1924104,178.05,177.89,0.04110618]
[1748001772312,0.0392909,177.96,177.93,0.04139549]
[1748001772915,5.6192,177.95,177.93,0.04139549]
[1748001773117,0.0392909,177.96,177.93,0.04139549]
[1748001774225,5.6192,177.95,177.93,0.04139549]
[1748001774410,0.0392909,177.96,177.93,0.04139549]
[1748001775110,0.0392909,177.96,177.61,445.58]
[1748001775306,1.9147,178.07,177.85,16.28158571]
[1748001775505,1.9147,178.07,177.79,445.58]
[1748001775715,1.9147,178.07,177.87,16.28158571]
[1748001776112,0.04185992,177.99,177.95,0.03794009]
[1748001776307,0.04309191,177.99,177.95,0.03961436]
[1748001776819,5.6189,177.96,177.95,1.436e-05]
[1748001777320,11.2389,177.96,177.95,1.436e-05]
[1748001778218,5.62,177.96,177.8,445.58]
[1748001778412,1.8901,177.95,177.83,5.6228]
[1748001778611,1.8901,177.95,177.8,445.58]
[1748001778811,5.621,177.9,177.8,445.58]
[1748001779026,1.8901,177.95,177.8,445.58]
[1748001779215,0.03704714,177.89,177.86,0.04244384]
[1748001780624,3.8551,177.98,177.86,0.04244384]
[1748001780917,3.8551,177.98,177.8,445.58]
[1748001781226,465.52165592,177.98,177.67,16.30655592]
[1748001781521,0.03953481,177.85,177.61,466.48315592]
[1748001781723,16.30655592,177.87,177.61,450.1766]
[1748001781921,5.5935,177.86,177.61,450.1766]
[1748001782420,445.36,177.85,177.61,450.1766]
[1748001782614,0.04002989,177.75,177.52,4.8168]
[1748001782813,16.33002038,177.81,177.52,4.8168]
[1748001783019,462.26,177.85,177.52,4.8168]
[1748001783223,16.34564516,177.79,177.52,4.8168]
[1748001783427,16.34789412,177.78,177.51,6.05165417]
[1748001783614,0.03891041,177.66,177.63,0.0410045]
[1748001783817,0.03671955,177.66,177.63,0.04145556]
[1748001785319,5.65671955,177.66,177.42,17.20199162]
[1748001785523,16.35439162,177.69,177.45,5.635]
[1748001785725,1.9326,177.65,177.36,449.2976]
[1748001786023,16.37535294,177.63,177.44,5.6356]
[1748001786227,16.37372602,177.64,177.52,0.03614607]
[1748001786526,16.37971353,177.61,177.41,5.6366]
[1748001786829,1.9326,177.65,177.31,8.9921548]
[1748001787029,11.2588,177.64,177.31,8.9921548]
[1748001787226,16.38668301,177.57,177.31,8.9921548]
[1748001787526,5.6354,177.45,177.44,0.03707013]
[1748001787730,0.03725719,177.47,177.31,8.9921548]
[1748001787934,16.38972252,177.54,177.31,8.9921548]
[1748001788115,16.38972252,177.54,177.27,62.0]
[1748001788627,0.04252751,177.42,177.39,0.03615742]
[1748001788825,0.04249423,177.42,177.39,0.03911292]
[1748001789223,0.04249423,177.42,177.21,1.8426]
[1748001789224,5.68249423,177.42,177.18,2.761]
[1748001789428,1.9987,177.41,177.15,16.39067221]
[1748001789632,1.9987,177.41,177.14,454.8321548]
[1748001789826,18.38937221,177.41,177.14,454.8321548]
[1748001790133,5.6405,177.29,177.27,0.04072349]
[1748001790329,0.0366666,177.3,177.26,0.04088697]
[1748001790532,0.03670186,177.3,177.26,0.04107773]
[1748001791725,5.67670186,177.3,177.04,15.60194872]
[1748001791927,2.0126,177.29,177.07,15.60277396]
[1748001792238,462.24572987,177.45,177.14,16.40572987]
[1748001792424,5.6376,177.39,177.3,5.6402]
[1748001792733,0.03613864,177.36,177.33,0.03859532]
[1748001792927,0.03982954,177.36,177.33,0.04118469]
[1748001793128,0.03982954,177.36,177.17,446.14]
[1748001793324,2.0295,177.43,177.17,446.14]
[1748001793524,2.0295,177.43,177.26,5.6413]
[1748001793726,2.0295,177.43,177.17,446.14]
[1748001794031,0.04026272,177.32,177.31,5.6399]
[1748001794237,0.04245743,177.33,177.31,5.6399]
[1748001794532,0.04327505,177.34,177.3,0.04221668]
[1748001794728,0.03804985,177.34,177.32,5.6393]
[1748001794934,0.03804985,177.34,177.3,0.03833342]
[1748001800131,0.03804985,177.34,177.17,446.14]
[1748001800329,2.0126,177.44,177.17,446.14]
[1748001800535,5.6407,177.29,177.17,446.14]
[1748001800737,2.0126,177.44,177.17,446.14]
[1748001801032,27.67784614,177.4,177.29,1.029e-05]
[1748001801339,16.40364614,177.35,177.04,16.40364614]
[1748001801638,450.4761,177.34,177.0,446.52]
[1748001801826,466.87974614,177.34,177.01,16.40364614]
[1748001802332,0.03709289,177.19,177.16,0.03619606]
[1748001802528,0.04081806,177.19,177.16,0.03667708]
[1748001804733,5.6422,177.24,177.18,5.644]
[1748001804937,3.9561,177.34,177.1,15.58993641]
[1748001805135,3.9561,177.34,177.11,446.66]
[1748001805136,1.9766,177.34,177.11,446.66]
[1748001805333,1.9766,177.34,177.21,5.6428]
[1748001805527,1.9766,177.34,177.11,463.06461413]
[1748001805840,0.04285825,177.24,177.21,0.04081269]
[1748001806139,1.9766,177.34,177.21,0.03602]
[1748001806340,1.9502,177.42,177.16,20.3885342]
[1748001806529,1.9207,177.41,177.16,20.3885342]
[1748001806735,1.9207,177.41,177.16,3.9832]
[1748001807036,0.04308241,177.3,177.27,0.04040454]
[1748001807338,5.6409,177.28,177.27,0.03656036]
[1748001808046,5.6409,177.28,177.27,6.036e-05]
[1748001810144,11.2809,177.28,177.27,6.036e-05]
[1748001811447,5.6409,177.28,177.27,6.036e-05]
[1748001812041,0.0381961,177.3,177.27,6.036e-05]
[1748001812446,5.6409,177.28,177.27,6.036e-05]
[1748001813747,0.0381961,177.3,177.27,6.036e-05]
[1748001814745,5.6409,177.28,177.27,6.036e-05]
[1748001817142,11.2809,177.28,177.27,6.036e-05]
[1748001818266,5.6409,177.28,177.27,6.036e-05]
[1748001818557,11.2809,177.28,177.27,6.036e-05]
[1748001818756,5.64,177.28,177.09,4.7206]
[1748001819058,0.0381961,177.3,177.01,2.7559]
[1748001819059,2.0207,177.27,177.01,2.7559]
[1748001819349,15.62017805,177.23,177.01,2.7559]
[1748001819649,4.0061,177.26,176.96,17.64337805]
[1748001819854,0.04016593,177.13,177.09,0.04081433]
[1748001820055,0.04333593,177.13,177.09,0.04198252]
[1748001820443,0.04333593,177.13,177.09,5.68868252]
[1748001820649,0.04333593,177.13,177.09,0.04198252]
[1748001820952,0.04333593,177.13,177.11,5.6462]
[1748001821152,0.04333593,177.13,177.09,0.04198252]
[1748001822952,5.6466,177.1,177.09,0.04198252]
[1748001823460,5.6464,177.11,177.09,0.04198252]
[1748001823653,0.04333593,177.13,177.09,0.04198252]
[1748001824659,5.6466,177.1,177.09,0.04198252]
[1748001824860,0.04333593,177.13,177.09,0.04198252]
[1748001825055,5.6463,177.12,177.09,0.04198252]
[1748001825257,0.04333593,177.13,177.09,0.04198252]
[1748001825656,14.38878239,177.11,176.89,14.38878239]
[1748001825959,14.41490416,177.08,176.87,19.15170416]
[1748001826158,5.651,176.97,176.9,5.653]
[1748001826356,14.41391029,177.08,176.88,14.41391029]
[1748001826559,5.6522,176.93,176.87,4.7368]
[1748001826760,0.04267228,176.92,176.88,0.03671636]
[1748001826966,0.04008028,176.92,176.88,0.03866212]
[1748001827159,5.653,176.91,176.88,0.03866212]
[1748001827354,0.04008028,176.92,176.88,0.03866212]
[1748001827566,5.6507,176.98,176.89,14.41233509]
[1748001827751,14.41233509,177.06,176.81,2.7583]
[1748001827957,14.41233509,176.95,176.66,11.321]
[1748001828160,1.9236,176.94,176.72,14.41233509]
[1748001828363,14.43920019,176.92,176.73,62.0]
[1748001828657,5.6549,176.84,176.83,0.04279636]
[1748001828856,0.03704491,176.85,176.82,0.04201146]
[1748001829065,14.43484322,177.01,176.79,14.43484322]
[1748001829253,3.9457,177.06,176.83,5.655]
[1748001829456,3.9457,177.06,176.73,62.0]
[1748001829652,3.9457,177.06,176.8,14.42679413]
[1748001829653,14.42679413,177.01,176.8,14.42679413]
[1748001830065,0.03773706,176.92,176.89,0.03602202]
[1748001830271,0.03852151,176.92,176.89,0.03690332]
[1748001830668,3.9457,177.06,176.9,14.41992864]
[1748001830857,3.9457,177.06,176.79,447.22]
[1748001831053,3.9457,177.06,176.91,14.41394268]
[1748001831657,0.03988765,177.0,176.97,0.04116481]
[1748001832163,0.03988765,177.0,176.82,14.41498685]
[1748001832359,5.651,176.97,176.83,14.41498685]
[1748001832558,14.41498685,177.04,176.83,14.41498685]
[1748001832762,14.42725134,177.02,176.81,15.32355134]
[1748001833053,0.03874292,176.93,176.88,14.40697865]
[1748001833271,14.40148147,177.18,176.92,14.40148147]
[1748001833465,1.8572,177.17,176.99,14.40148147]
[1748001833663,1.8572,177.17,176.95,15.62131025]
[1748001834060,1.8572,177.17,176.94,17.60971025]
[1748001834268,0.03828421,177.08,177.04,0.03809234]
[1748001834471,0.04326545,177.08,177.04,0.04273985]
[1748001835169,5.69056545,177.08,177.04,0.04273985]
[1748001835471,0.04326545,177.08,177.04,0.04273985]
[1748001837966,5.6482,177.05,177.04,0.04273985]
[1748001839968,22.54,177.05,176.77,15.63810179]
[1748001840275,11.2923,177.12,176.74,17.36755417]
[1748001840276,3.7528,177.04,176.79,17.48989491]
[1748001840573,3.7528,177.04,176.8,62.0]
[1748001840789,3.7528,177.04,176.8,77.64699491]
[1748001840970,3.7528,177.04,176.9,8.921e-05]
[1748001840971,5.6528,176.91,176.9,8.921e-05]
[1748001841171,3.7528,177.04,176.75,1.8433]
[1748001841172,15.66188626,177.01,176.75,1.8433]
[1748001841373,16.9,176.98,176.75,1.8433]
[1748001841580,5.6553,176.83,176.75,1.8433]
[1748001841766,16.9,176.98,176.75,1.8433]
[1748001842174,0.03727561,176.88,176.85,0.03688826]
[1748001842369,0.04072328,176.88,176.85,0.0416904]
[1748001842574,0.04072328,176.88,176.71,447.44]
[1748001842870,16.9,176.91,176.71,447.44]
[1748001843067,20.6794,176.9,176.64,447.58]
[1748001843478,0.03821314,176.79,176.75,0.04133652]
[1748001843773,0.03757077,176.79,176.75,0.03976488]
[1748001843979,0.03757077,176.79,176.75,6.488e-05]
[1748001844184,5.69757077,176.79,176.53,447.58]
[1748001844372,3.7794,176.78,176.54,0.8966]
[1748001844566,20.6794,176.78,176.54,0.8966]
[1748001844772,3.7794,176.78,176.54,0.8966]
[1748001844983,3.7794,176.78,176.64,5.6612]
[1748001845183,0.04193779,176.73,176.69,0.03192598]
[1748001845985,0.04193779,176.73,176.5,15.69166585]
[1748001846176,3.7794,176.78,176.51,0.9464]
[1748001846380,3.7794,176.78,176.56,15.69166585]
[1748001846580,3.7794,176.78,176.59,15.69166585]
[1748001846779,0.04212437,176.7,176.51,0.9464]
[1748001846977,0.03833172,176.62,176.51,0.9464]
[1748001847187,3.7794,176.78,176.56,15.69166585]
[1748001847385,3.7794,176.78,176.57,3.9106]
[1748001847685,3.7794,176.78,176.59,15.69166585]
[1748001848193,447.78,176.93,176.67,0.04014398]
[1748001848482,3.8635,176.92,176.68,447.78]
[1748001848689,3.8635,176.92,176.75,15.69166585]
[1748001848884,3.8635,176.92,176.69,451.8218]
[1748001849084,4.71450272,177.0,176.73,15.69166585]
[1748001849284,0.03868008,176.88,176.85,0.04148186]
[1748001849487,0.04221604,176.88,176.85,0.03865309]
[1748001849684,5.70221604,176.88,176.85,5.309e-05]
[1748001849890,5.6542,176.86,176.85,5.309e-05]
[1748001850094,0.04221604,176.88,176.85,5.309e-05]
[1748001851192,18.13839479,177.07,176.85,5.309e-05]
[1748001851387,5.7533,177.06,176.82,447.9]
[1748001851588,5.7533,177.06,176.77,62.9464]
[1748001851795,5.7533,177.06,176.77,0.9464]
[1748001852095,0.03670963,176.93,176.9,0.03715464]
[1748001852299,0.03772733,176.93,176.9,0.04336742]
[1748001853292,0.03772733,176.93,176.92,5.6523]
[1748001853500,5.7533,177.06,176.9,5.70336742]
[1748001853692,5.7533,177.06,176.85,451.6976]
[1748001853693,3.7692,177.06,176.85,451.6976]
[1748001854183,3.7692,177.06,176.77,0.9464]
[1748001854383,3.7692,177.06,176.9,0.04110786]
[1748001854384,0.03951501,176.93,176.9,0.04110786]
[1748001854583,5.6529,176.91,176.9,0.04285783]
[1748001854994,5.66,176.91,176.77,0.9464]
[1748001855204,3.7914,176.92,176.68,4.7206]
[1748001855399,1.8666,176.9,176.68,4.7206]
[1748001855592,5.6578,176.75,176.61,469.52332002]
[1748001855794,1.8666,176.9,176.62,4.7206]
[1748001855994,0.03730256,176.78,176.74,0.04252455]
[1748001856197,0.04334633,176.78,176.61,453.83165417]
[1748001856496,15.69166585,176.8,176.61,6.05165417]
[1748001856698,16.9,176.83,176.61,6.05165417]
[1748001857098,16.9,176.83,176.55,0.945]
[1748001857099,5.6598,176.69,176.55,0.945]
[1748001857303,0.03617921,176.64,176.6,0.03635714]
[1748001857506,11.3106,176.83,176.63,5.6614]
[1748001857701,5.6594,176.7,176.55,16.63666585]
[1748001857911,447.78,176.86,176.56,62.0]
[1748001858304,16.9,176.82,176.55,0.945]
[1748001858504,0.04052585,176.7,176.67,0.03849998]
[1748001858701,0.03969617,176.7,176.67,0.03996434]
[1748001858898,1.8666,176.9,176.67,0.03996434]
[1748001859197,1.8666,176.9,176.66,447.96]
[1748001859402,1.8666,176.9,176.68,15.66755847]
[1748001859797,0.0415236,176.81,176.77,0.03806255]
[1748001859994,0.0415236,176.81,176.77,0.03839173]
[1748001859995,0.03739422,176.81,176.77,0.03839173]
[1748001860197,0.03739422,176.81,176.77,9.173e-05]
[1748001860407,5.6568,176.78,176.77,9.173e-05]
[1748001861209,0.03739422,176.81,176.77,9.173e-05]
[1748001861700,5.6568,176.78,176.77,9.173e-05]
[1748001864396,0.03739422,176.81,176.77,5.65699173]
[1748001864599,2.0408,176.95,176.77,9.173e-05]
[1748001864910,2.0408,176.95,176.75,15.65466836]
[1748001865107,4.71450272,176.96,176.77,15.65258716]
[1748001865603,4.71450272,176.96,176.8,15.6461028]
[1748001865800,0.03912356,176.88,176.85,0.04195203]
[1748001865999,4.17101312,176.98,176.85,0.03804587]
[1748001866308,12.73407543,177.05,176.91,15.62606579]
[1748001866505,12.73407543,177.05,176.87,15.63365081]
[1748001866707,12.73407543,177.05,176.84,448.04]
[1748001866908,0.03687441,176.94,176.9,0.03866208]
[1748001867110,0.0411668,176.94,176.9,0.04280821]
[1748001867509,0.0411668,176.94,176.91,5.6523]
[1748001867706,0.0411668,176.94,176.9,0.04280821]
[1748001868312,5.6526,176.91,176.9,0.04280821]
[1748001869010,0.0411668,176.94,176.63,8.9921548]
[1748001869317,447.94,177.01,176.72,15.66150437]
[1748001869610,5.6533,176.89,176.82,5.6552]
[1748001869911,447.94,177.01,176.81,15.64537668]
[1748001870111,0.0380621,176.93,176.89,0.03793875]
[1748001870317,0.03969878,176.93,176.89,0.0430272]
[1748001871112,5.893,177.04,176.89,5.7030272]
[1748001871316,5.893,177.04,176.86,15.64537668]
[1748001871614,5.893,177.04,176.84,15.64537668]
[1748001871813,21.55029038,177.04,176.81,447.88]
[1748001872011,5.893,177.04,176.81,447.88]
[1748001872209,0.04035302,176.94,176.91,3.963e-05]
[1748001872410,5.893,177.04,176.81,447.88]
[1748001872610,15.65527429,177.0,176.71,447.88]
[1748001872815,11.301,176.98,176.71,447.88]
[1748001873013,11.301,176.98,176.72,15.6616695]
[1748001873211,5.6926205,176.87,176.83,0.04018848]
[1748001873513,0.03841014,176.87,176.83,0.03663824]
[1748001874312,5.69251014,176.87,176.83,0.03663824]
[1748001874519,0.03841014,176.87,176.83,0.03663824]
[1748001874813,5.6519,176.94,176.88,5.6534]
[1748001875120,5.893,177.04,176.8,15.64613103]
[1748001875412,15.66419922,177.01,176.71,447.88]
[1748001875614,15.66419922,176.95,176.66,6.05165417]
[1748001875808,0.04251539,176.82,176.79,2.053e-05]
[1748001876015,15.68398464,176.89,176.66,6.05165417]
[1748001876210,4.0459,176.88,176.66,6.05165417]
[1748001876717,11.3099,176.84,176.66,6.05165417]
[1748001876916,0.03957766,176.77,176.73,0.03800934]
[1748001877119,0.03957766,176.77,176.66,6.05165417]
[1748001877419,11.3118,176.81,176.66,6.05165417]
[1748001877613,5.6603,176.67,176.66,2.98075417]
[1748001877920,15.6982286,176.79,176.63,8.9921548]
[1748001878113,5.6612,176.64,176.63,8.9921548]
[1748001878626,5.6616,176.63,176.62,0.04126193]
[1748001878919,5.6616,176.63,176.62,6.193e-05]
[1748001880108,11.3216,176.63,176.62,6.193e-05]
[1748001880315,486.27801803,176.63,176.21,20.19977628]
[1748001880617,15.73782332,176.61,176.31,3.8381]
[1748001880823,16.9,176.61,176.33,15.73212929]
[1748001881015,464.9,176.63,176.31,3.8381]
[1748001881328,0.03873866,176.5,176.47,0.03858803]
[1748001881518,0.03873866,176.5,176.47,0.0397326]
[1748001881519,0.04331258,176.5,176.47,0.0397326]
[1748001881820,0.04331258,176.5,176.32,62.0]
[1748001881821,5.70331258,176.5,176.32,62.0]
[1748001882121,15.73212929,176.55,176.31,1.9572]
[1748001882426,15.73212929,176.6,176.32,15.73212929]
[1748001882610,448.0,176.63,176.34,15.73088263]
[1748001882812,0.04220021,176.5,176.34,15.73088263]
[1748001883012,1.9849,176.62,176.34,15.73088263]
[1748001883214,1.9849,176.62,176.37,15.73088263]
[1748001883421,0.03581414,176.5,176.43,15.73088263]
[1748001883608,1.9849,176.62,176.44,2.0162]
[1748001883810,448.0,176.63,176.44,3.9447]
[1748001884012,18.18219151,176.68,176.45,17.66952947]
[1748001884724,450.2649,176.73,176.55,0.03856388]
[1748001884911,5.6594,176.7,176.56,62.0]
[1748001885113,448.28,176.73,176.57,17.63652947]
[1748001885315,448.38,176.83,176.62,15.71492947]
[1748001885517,1.9298,176.84,176.64,15.71492947]
[1748001885922,0.04308531,176.76,176.72,0.04072551]
[1748001886113,9.50313233,176.91,176.64,15.71492947]
[1748001886314,1.9298,176.9,176.7,15.71492947]
[1748001886623,1.9298,176.9,176.65,448.38]
[1748001886925,17.64472947,176.9,176.65,448.38]
[1748001887219,0.0396889,176.79,176.76,0.03987222]
[1748001887416,0.04223909,176.79,176.58,1.8936]
[1748001887619,1.8873,176.89,176.58,1.8936]
[1748001887816,15.6989099,176.8,176.58,1.8936]
[1748001888022,5.659,176.72,176.65,5.6609]
[1748001888219,448.32,176.81,176.58,17.57771603]
[1748001888413,448.32,176.81,176.68,0.03620351]
[1748001888624,448.32,176.81,176.62,5.6618]